fUST/lending_fUST_20240414
["ID","MTS","AMOUNT","RATE_DAILY","PERIOD"]
[322560838,1713061840935,-2679.79686373,0.00042886,7]
[322560840,1713061840946,-825.31313627,0.00042886,7]
[322560842,1713061840956,-28999.25974943,0.00042887,2]
[322561068,1713061843586,-3505.11,0.00042886,7]
[322561070,1713061843595,-511.50158899,0.00042886,7]
[322561169,1713061847443,-2993.60841101,0.00042886,7]
[322561170,1713061847453,-3505.11,0.00042886,7]
[322561171,1713061847462,-3505.11,0.00042886,7]
[322561172,1713061847472,-13927.17628844,0.00042887,2]
[322561173,1713061847481,-2255.64963971,0.00042887,2]
[322561174,1713061847493,-7544.17399105,0.00042887,2]
[322561175,1713061847503,-36383.45224351,0.00042887,2]
[322561176,1713061847520,-1532.84180828,0.00042887,2]
[322561183,1713062669688,2421.82060364,0.00042891,30]
[322561184,1713062755828,-393.71398254,0.00027388,4]
[322561186,1713062841294,-518.9022578,0.00027387,2]
[322561187,1713062841315,-1059.12800482,0.00027394,2]
[322561189,1713062959104,-1088.50885786,0.00027392,2]
[322561190,1713062959129,-300.0,0.00027393,2]
[322561191,1713062959151,-300.0,0.00027393,2]
[322561192,1713062959175,-2601.50863141,0.00027393,2]
[322561193,1713062959201,-356.40165886,0.00027394,5]
[322561194,1713062960105,-1928.40015842,0.00027394,5]
[322561279,1713063032815,-208.536508,0.00027394,5]
[322561280,1713063032825,-525.88055018,0.00027394,2]
[322561282,1713063032834,-6794.23485374,0.00027394,2]
[322561283,1713063032843,-523.06438682,0.00027396,4]
[322561284,1713063032853,-172.29685,0.00027397,2]
[322561285,1713063032862,-754.89389578,0.000274,2]
[322561286,1713063032871,-400.0,0.00033999,2]
[322561287,1713063032880,-249.0,0.00033999,2]
[322561288,1713063032889,-465.26500893,0.00035314,4]
[322561289,1713063032899,-166.969875,0.00035315,2]
[322561290,1713063032908,-3388.7867663,0.00035985,2]
[322561291,1713063032917,-1267.4847093,0.0003608,2]
[322561292,1713063032926,-1925.890522,0.00037234,120]
[322561293,1713063032935,-162.792895,0.00039269,2]
[322561294,1713063032944,-1467.8285652,0.00039348,2]
[322561295,1713063032953,-2000.0,0.000398,13]
[322561296,1713063032962,-1407.60638131,0.0004079,4]
[322561297,1713063032972,-765.77527608,0.00040791,2]
[322561298,1713063032981,-2000.0,0.000418,26]
[322561299,1713063032991,-9951.30462087,0.00041884,120]
[322561300,1713063033001,-5340.8495933,0.00041887,4]
[322561301,1713063033010,-162.0,0.00042,120]
[322561302,1713063033020,-795.0209057,0.00042627,15]
[322561303,1713063033029,-362.87509329,0.0004267,4]
[322561304,1713063033039,-310.76940139,0.0004267,4]
[322561305,1713063033049,-478.3241298,0.0004267,4]
[322561306,1713063033129,-981.75661449,0.0004267,4]
[322561307,1713063033139,-328.17821095,0.00042671,4]
[322561308,1713063033148,-7497.87423686,0.00042672,2]
[322561318,1713063038705,-2447.10273848,0.00042672,2]
[322561319,1713063039821,-10973.20163544,0.00042672,2]
[322561320,1713063039832,-1000.0,0.000428,31]
[322561322,1713063039842,-457.9236817,0.00042885,30]
[322561323,1713063039852,-1959.91025879,0.00042885,4]
[322561325,1713063039862,-500.0,0.0004289,31]
[322561327,1713063039871,-500.0,0.0004289,31]
[322561329,1713063039881,-327.78737273,0.0004289,31]
[322561331,1713063039891,-312.75627863,0.0004289,4]
[322561333,1713063039901,-868.49999092,0.0004289,4]
[322561335,1713063039911,-2018.02519124,0.0004289,2]
[322561337,1713063039921,-410.47435021,0.0004289,7]
[322561339,1713063039931,-182.21132244,0.0004289,4]
[322561341,1713063039942,-515.10153633,0.0004289,4]
[322561343,1713063039989,-193.99989894,0.0004289,4]
[322561345,1713063039999,-155.11825,0.0004289,4]
[322561347,1713063040008,-155.1606723,0.0004289,4]
[322561350,1713063040018,-1297.50106185,0.0004289,4]
[322561359,1713063040096,-280.11173304,0.0004289,4]
[322561361,1713063040106,-156.22346831,0.0004289,4]
[322561363,1713063040115,-156.43519817,0.0004289,4]
[322561365,1713063040126,-155.48971478,0.0004289,4]
[322561367,1713063040140,-469.47636239,0.0004289,4]
[322561369,1713063040149,-2003.93511957,0.0004289,4]
[322561371,1713063040158,-155.52383077,0.0004289,4]
[322561372,1713063040168,-155.7017042,0.0004289,7]
[322561373,1713063040178,-7464.73572056,0.00042891,2]
[322561374,1713063040187,-14276.81644981,0.00042891,2]
[322561375,1713063040196,-316.24390008,0.00042891,2]
[322561376,1713063040205,-1026.41489309,0.00042891,2]
[322561377,1713063040215,-548.63201378,0.00042891,4]
[322561378,1713063040226,-900.18167675,0.00042893,4]
[322561379,1713063040235,-230.87713916,0.00042893,4]
[322561380,1713063040245,-632.09071412,0.00042893,4]
[322561381,1713063040254,-382.50087644,0.00042893,4]
[322561382,1713063040264,-709.72261471,0.00042893,4]
[322561383,1713063040273,-634.90158288,0.00042893,4]
[322561384,1713063040282,-208.95330074,0.00042893,4]
[322561385,1713063040292,-744.07945583,0.00042893,4]
[322561386,1713063040308,-213.22358192,0.00042893,4]
[322561387,1713063040317,-422.00653113,0.00042893,4]
[322561388,1713063040326,-332.00817099,0.00042893,4]
[322561389,1713063040339,-453.68797097,0.00042893,4]
[322561390,1713063040348,-155.88994758,0.00042894,4]
[322561391,1713063040358,-1215.90403432,0.00042894,4]
[322561392,1713063040367,-1973.327654,0.00042894,4]
[322561393,1713063040377,-10000.0,0.00042895,30]
[322561394,1713063040386,-10000.0,0.00042895,30]
[322561395,1713063040396,-500.0,0.00042896,30]
[322561396,1713063040405,-521.74048794,0.00042896,30]
[322561397,1713063040415,-150.0,0.00043,90]
[322561398,1713063040425,-150.0,0.00043014,90]
[322561400,1713063040435,-169.996218,0.00043053,2]
[322561401,1713063040444,-1925.890522,0.0004344,120]
[322561402,1713063040453,-150.0,0.00044877,90]
[322561403,1713063040462,-8525.96587147,0.00045,120]
[322561405,1713063040471,-765.77527608,0.00045791,2]
[322561406,1713063040480,-154.86062544,0.000459,4]
[322561407,1713063040490,-152.0,0.00047121,90]
[322561408,1713063040499,-150.62201785,0.00047266,60]
[322561409,1713063040509,-150.84915085,0.00047591,2]
[322561410,1713063040518,-208.729,0.00047676,2]
[322561411,1713063040535,-1375.43,0.00047966,7]
[322561412,1713063040548,-150.0,0.00048266,60]
[322561413,1713063040557,-301.6983017,0.00048391,4]
[322561414,1713063040566,-2986.89904083,0.000485,2]
[322561416,1713063040575,-1197.99,0.000487,7]
[322561417,1713063040585,-3375.73989283,0.00049,120]
[322561418,1713063040594,-2000.0,0.00049,68]
[322561419,1713063040603,-2828.241168,0.0004901,68]
[322561420,1713063040612,-603.3966034,0.00049204,7]
[322561421,1713063040623,-150.0,0.00049266,60]
[322561422,1713063040632,-158.233435,0.00049315,2]
[322561423,1713063040642,-165.452874,0.00049315,2]
[322561424,1713063040651,-5000.0,0.00049587,10]
[322561425,1713063040660,-1925.890522,0.00049645,120]
[322561426,1713063040669,-1000.0,0.000498,60]
[322561427,1713063040679,-154.86062544,0.0005,30]
[322561428,1713063040689,-151.0,0.0005,120]
[322561429,1713063040698,-150.0,0.00050262,120]
[322561430,1713063040707,-306.0,0.00050375,2]
[322561431,1713063040716,-1206.79320679,0.0005045,30]
[322561432,1713063040725,-158.55913621,0.00050599,3]
[322561433,1713063040735,-306.0,0.00050642,30]
[322561434,1713063040744,-765.77527608,0.00050791,2]
[322561435,1713063040753,-237.2136,0.00050855,2]
[322561436,1713063040762,-586.0,0.000509,30]
[322561437,1713063040770,-316.1140928,0.0005111,120]
[322561438,1713063040779,-210.50213484,0.0005111,120]
[322561439,1713063040788,-73051.52842796,0.00051111,61]
[322561440,1713063040801,-62491.88716331,0.00051111,2]
[322561441,1713063040810,-1000.0,0.00052,120]
[322561442,1713063040819,-927.27197832,0.00052051,4]
[322561443,1713063040828,-400.0,0.00052055,30]
[322561444,1713063040837,-153.0,0.00052334,2]
[322561445,1713063040845,-153.0,0.00052334,2]
[322561446,1713063040854,-153.0,0.00052334,2]
[322561447,1713063040863,-153.0,0.00052334,2]
[322561448,1713063040872,-153.0,0.00052334,2]
[322561449,1713063040881,-306.0,0.00052334,2]
[322561450,1713063040889,-150.0,0.00053403,120]
[322561451,1713063040898,-150.0,0.00053852,120]
[322561452,1713063040907,-152.8715334,0.00054,120]
[322561453,1713063040916,-40212.0,0.00054,5]
[322561454,1713063040925,-5000.0,0.00054171,20]
[322561455,1713063040933,-4248.63394301,0.00054694,2]
[322561456,1713063040942,-150.0,0.000547,2]
[322561457,1713063040950,-714.86478588,0.00054738,4]
[322561459,1713063040959,-353.4522899,0.00054788,4]
[322561460,1713063040968,-201.82015991,0.00054788,4]
[322561461,1713063040978,-1195.09758143,0.00054788,2]
[322561462,1713063040987,-274.03484684,0.0005479,4]
[322561463,1713063040996,-156.26281681,0.0005479,4]
[322561464,1713063041006,-155.057507,0.0005479,2]
[322561465,1713063041015,-500.0,0.0005479,5]
[322561466,1713063041025,-500.0,0.0005479,5]
[322561467,1713063041036,-500.0,0.0005479,5]
[322561468,1713063041049,-500.0,0.0005479,5]
[322561469,1713063041115,-500.0,0.0005479,5]
[322561470,1713063041127,-500.0,0.0005479,120]
[322561471,1713063041142,-500.0,0.0005479,120]
[322561472,1713063041151,-500.0,0.0005479,120]
[322561473,1713063041160,-500.0,0.0005479,5]
[322561474,1713063041170,-500.0,0.0005479,120]
[322561475,1713063041181,-500.0,0.0005479,120]
[322561476,1713063041190,-500.0,0.0005479,120]
[322561477,1713063041201,-500.0,0.0005479,120]
[322561478,1713063041211,-500.0,0.0005479,120]
[322561479,1713063041220,-500.0,0.0005479,120]
[322561480,1713063041229,-500.0,0.0005479,2]
[322561481,1713063041238,-500.0,0.0005479,2]
[322561482,1713063041247,-500.0,0.0005479,2]
[322561483,1713063041258,-500.0,0.0005479,2]
[322561484,1713063041267,-1000.0,0.0005479,2]
[322561485,1713063041277,-1000.0,0.0005479,2]
[322561486,1713063041286,-1000.0,0.0005479,2]
[322561487,1713063041300,-4722.094461,0.0005479,2]
[322561488,1713063041310,-5833.37012483,0.00054791,4]
[322561489,1713063041320,-155.32008139,0.00054792,4]
[322561490,1713063041329,-291.63760977,0.00054792,4]
[322561491,1713063041338,-182.74826404,0.00054792,4]
[322561492,1713063041347,-1947.54127802,0.00054792,4]
[322561493,1713063041356,-969.72960193,0.00054792,4]
[322561494,1713063041366,-284.34823194,0.00054792,4]
[322561495,1713063041375,-157.45311927,0.00054792,4]
[322561496,1713063041384,-1873.49924995,0.00054792,4]
[322561497,1713063041393,-2799.12790122,0.00054792,120]
[322561498,1713063041402,-185.66200165,0.00054792,4]
[322561499,1713063041411,-40585.13426362,0.00054792,4]
[322561500,1713063041420,-184.58490042,0.00054792,4]
[322561501,1713063041430,-186.10873738,0.00054792,4]
[322561502,1713063041439,-156.12645652,0.00054792,4]
[322561503,1713063041448,-943.57848554,0.00054793,4]
[322561504,1713063041458,-411.15724483,0.00054793,4]
[322561505,1713063041467,-155.37407508,0.00054793,4]
[322561506,1713063041476,-894.64336937,0.00054793,4]
[322561507,1713063041486,-157.89794959,0.00054793,4]
[322561508,1713063041495,-208.36553956,0.00054793,4]
[322561509,1713063041504,-3766.51071123,0.00054793,4]
[322561510,1713063041514,-214.73983617,0.00054793,4]
[322561511,1713063041523,-1302.40532052,0.00054793,4]
[322561512,1713063041533,-306.51029499,0.00054793,4]
[322561513,1713063041545,-155.34797295,0.00054793,4]
[322561514,1713063041555,-156.39858501,0.00054793,2]
[322561515,1713063041564,-155.48219003,0.00054793,4]
[322561516,1713063041573,-419.22,0.00054793,7]
[322561517,1713063041582,-419.22,0.00054793,7]
[322561518,1713063041592,-419.22,0.00054793,7]
[322561519,1713063041601,-419.22,0.00054793,7]
[322561520,1713063041611,-419.22,0.00054793,7]
[322561521,1713063041620,-419.22,0.00054793,7]
[322561522,1713063041630,-419.22,0.00054793,7]
[322561523,1713063041640,-419.22,0.00054793,7]
[322561524,1713063041650,-419.22,0.00054793,7]
[322561525,1713063041659,-419.22,0.00054793,7]
[322561526,1713063041669,-500.0,0.00054794,120]
[322561527,1713063041678,-284.86004094,0.00054794,120]
[322561528,1713063041688,-500.0,0.00054794,120]
[322561529,1713063041697,-500.0,0.00054794,120]
[322561530,1713063041707,-500.0,0.00054794,120]
[322561531,1713063041715,-151.0,0.00054794,7]
[322561532,1713063041725,-151.0,0.00054794,7]
[322561533,1713063041735,-151.0,0.00054794,7]
[322561534,1713063041744,-151.0,0.00054794,7]
[322561535,1713063041754,-501.63576852,0.00054794,120]
[322561536,1713063041764,-500.0,0.00054794,120]
[322561537,1713063041773,-500.0,0.00054794,120]
[322561538,1713063041782,-502.39794386,0.00054794,120]
[322561539,1713063041794,-500.0,0.00054794,120]
[322561540,1713063041803,-500.0,0.00054794,120]
[322561541,1713063041813,-500.0,0.00054794,120]
[322561542,1713063041822,-500.0,0.00054794,120]
[322561543,1713063041831,-190.05800521,0.00054794,120]
[322561544,1713063041841,-500.0,0.00054794,120]
[322561545,1713063041850,-500.0,0.00054794,120]
[322561546,1713063041860,-500.0,0.00054794,120]
[322561547,1713063041870,-500.0,0.00054794,120]
[322561548,1713063041879,-500.0,0.00054794,120]
[322561550,1713063041889,-179.12399732,0.00054794,120]
[322561551,1713063041899,-500.0,0.00054794,120]
[322561552,1713063041908,-207.57755959,0.00054794,120]
[322561553,1713063041918,-500.0,0.00054794,120]
[322561554,1713063041927,-310.76397807,0.00054794,120]
[322561556,1713063041936,-500.0,0.00054794,120]
[322561557,1713063041946,-500.0,0.00054794,120]
[322561559,1713063041955,-500.0,0.00054794,7]
[322561560,1713063041964,-176.94,0.00054794,7]
[322561561,1713063041974,-176.94,0.00054794,7]
[322561562,1713063041983,-176.94,0.00054794,7]
[322561563,1713063041993,-176.94,0.00054794,7]
[322561564,1713063042059,-176.94,0.00054794,7]
[322561565,1713063042070,-176.94,0.00054794,7]
[322561566,1713063042080,-176.94,0.00054794,7]
[322561567,1713063042090,-176.94,0.00054794,7]
[322561568,1713063042100,-176.94,0.00054794,7]
[322561569,1713063042111,-176.94,0.00054794,7]
[322561570,1713063042120,-500.0,0.00054794,120]
[322561571,1713063042132,-500.0,0.00054794,120]
[322561572,1713063042142,-239.59887307,0.00054794,120]
[322561573,1713063042153,-500.0,0.00054794,120]
[322561574,1713063042163,-500.0,0.00054794,120]
[322561575,1713063042172,-500.0,0.00054794,120]
[322561576,1713063042181,-500.0,0.00054794,120]
[322561577,1713063042191,-500.0,0.00054794,120]
[322561578,1713063042200,-500.0,0.00054794,120]
[322561579,1713063042211,-500.0,0.00054794,120]
[322561580,1713063042221,-500.0,0.00054794,120]
[322561581,1713063042230,-508.5765188,0.00054794,120]
[322561582,1713063042239,-500.0,0.00054794,120]
[322561583,1713063042249,-500.0,0.00054794,120]
[322561584,1713063042259,-407.98962987,0.00054794,120]
[322561585,1713063042269,-500.0,0.00054794,120]
[322561586,1713063042280,-500.0,0.00054794,120]
[322561587,1713063042290,-500.0,0.00054794,120]
[322561588,1713063042302,-500.0,0.00054794,120]
[322561589,1713063042313,-155.723501,0.00054794,7]
[322561590,1713063042323,-500.0,0.00054794,120]
[322561591,1713063042333,-500.0,0.00054794,120]
[322561592,1713063042343,-500.0,0.00054794,120]
[322561593,1713063042353,-500.0,0.00054794,120]
[322561594,1713063042363,-160.4569,0.00054794,7]
[322561595,1713063042372,-500.0,0.00054794,120]
[322561596,1713063042382,-175.397129,0.00054794,7]
[322561597,1713063042393,-175.397129,0.00054794,7]
[322561598,1713063042403,-175.397129,0.00054794,7]
[322561599,1713063042413,-175.397129,0.00054794,7]
[322561600,1713063042424,-175.397129,0.00054794,7]
[322561601,1713063042435,-500.0,0.00054794,120]
[322561602,1713063042447,-175.397129,0.00054794,7]
[322561603,1713063042456,-175.397129,0.00054794,7]
[322561604,1713063042466,-175.397129,0.00054794,7]
[322561605,1713063042475,-175.397129,0.00054794,7]
[322561606,1713063042488,-175.397129,0.00054794,7]
[322561607,1713063042511,-384.08421743,0.00054794,120]
[322561608,1713063042528,-510.14736487,0.00054794,120]
[322561609,1713063042548,-500.0,0.00054794,120]
[322561610,1713063042567,-500.0,0.00054794,120]
[322561611,1713063042585,-500.0,0.00054794,120]
[322561612,1713063042604,-500.0,0.00054794,120]
[322561613,1713063042621,-500.0,0.00054794,120]
[322561614,1713063042640,-500.0,0.00054794,120]
[322561615,1713063042659,-500.0,0.00054794,120]
[322561616,1713063042677,-500.0,0.00054794,120]
[322561617,1713063042698,-500.0,0.00054794,120]
[322561618,1713063042715,-500.0,0.00054794,120]
[322561619,1713063042729,-500.0,0.00054794,120]
[322561620,1713063042747,-500.0,0.00054794,120]
[322561621,1713063042764,-500.0,0.00054794,120]
[322561622,1713063042778,-501.17274724,0.00054794,120]
[322561623,1713063042795,-500.0,0.00054794,120]
[322561624,1713063042809,-500.0,0.00054794,120]
[322561625,1713063042824,-502.01167525,0.00054794,120]
[322561626,1713063042839,-500.0,0.00054794,120]
[322561627,1713063042855,-238.74749659,0.00054794,120]
[322561628,1713063042871,-500.0,0.00054794,120]
[322561629,1713063042885,-500.0,0.00054794,120]
[322561630,1713063042899,-504.74532458,0.00054794,120]
[322561631,1713063042914,-500.0,0.00054794,120]
[322561632,1713063042929,-505.57019764,0.00054794,120]
[322561633,1713063042944,-500.0,0.00054794,120]
[322561634,1713063042959,-500.0,0.00054794,120]
[322561635,1713063042972,-500.0,0.00054794,120]
[322561636,1713063042988,-500.0,0.00054794,120]
[322561638,1713063043003,-500.0,0.00054794,120]
[322561640,1713063043016,-500.0,0.00054794,120]
[322561643,1713063043031,-500.0,0.00054794,120]
[322561645,1713063043045,-500.0,0.00054794,120]
[322561646,1713063043059,-398.81236266,0.00054794,120]
[322561647,1713063043072,-550.78548023,0.00054794,120]
[322561648,1713063043086,-172.00134143,0.00054794,120]
[322561649,1713063043100,-500.0,0.00054794,120]
[322561650,1713063043115,-1075.04,0.00054794,120]
[322561652,1713063043128,-500.0,0.00054794,120]
[322561654,1713063043142,-500.0,0.00054794,120]
[322561656,1713063043151,-500.0,0.00054794,120]
[322561659,1713063043265,-500.0,0.00054794,120]
[322561660,1713063043279,-500.0,0.00054794,120]
[322561662,1713063043288,-500.0,0.00054794,120]
[322561663,1713063043300,-500.0,0.00054794,120]
[322561664,1713063043310,-500.0,0.00054794,120]
[322561665,1713063043319,-500.0,0.00054794,120]
[322561666,1713063043328,-500.0,0.00054794,120]
[322561667,1713063043338,-500.0,0.00054794,120]
[322561668,1713063043348,-502.04804783,0.00054794,120]
[322561669,1713063043357,-501.53572753,0.00054794,120]
[322561670,1713063043367,-555.44,0.00054794,120]
[322561671,1713063043376,-500.0,0.00054794,120]
[322561672,1713063043386,-500.0,0.00054794,120]
[322561673,1713063043395,-500.0,0.00054794,120]
[322561674,1713063043405,-500.0,0.00054794,120]
[322561675,1713063043415,-500.0,0.00054794,120]
[322561676,1713063043424,-500.0,0.00054794,120]
[322561677,1713063043433,-502.37284172,0.00054794,120]
[322561678,1713063043443,-500.0,0.00054794,120]
[322561680,1713063043452,-500.0,0.00054794,120]
[322561682,1713063043462,-500.0,0.00054794,120]
[322561683,1713063043471,-500.0,0.00054794,120]
[322561684,1713063043480,-500.0,0.00054794,120]
[322561685,1713063043490,-501.0659108,0.00054794,14]
[322561686,1713063043499,-500.0,0.00054794,120]
[322561687,1713063043509,-500.0,0.00054794,120]
[322561688,1713063043517,-500.0,0.00054794,120]
[322561689,1713063043527,-500.0,0.00054794,120]
[322561690,1713063043536,-1851.021312,0.00054794,7]
[322561691,1713063043547,-151.0,0.00054794,120]
[322561692,1713063043556,-1851.021312,0.00054794,7]
[322561693,1713063043566,-1851.021312,0.00054794,7]
[322561694,1713063043575,-1851.021312,0.00054794,7]
[322561695,1713063043584,-500.0,0.00054794,120]
[322561696,1713063043593,-1851.021312,0.00054794,7]
[322561697,1713063043602,-500.0,0.00054794,120]
[322561698,1713063043611,-500.0,0.00054794,120]
[322561700,1713063043621,-1851.021312,0.00054794,7]
[322561702,1713063043630,-1851.021312,0.00054794,7]
[322561703,1713063043640,-1851.021312,0.00054794,7]
[322561704,1713063043649,-500.0,0.00054794,120]
[322561705,1713063043658,-1851.021312,0.00054794,7]
[322561706,1713063043667,-1851.021312,0.00054794,7]
[322561707,1713063043677,-500.0,0.00054794,120]
[322561708,1713063043686,-500.0,0.00054794,120]
[322561709,1713063043695,-500.0,0.00054794,120]
[322561710,1713063043705,-230.127448,0.00054794,7]
[322561711,1713063043715,-500.0,0.00054794,120]
[322561712,1713063043724,-230.127448,0.00054794,7]
[322561713,1713063043733,-230.127448,0.00054794,7]
[322561714,1713063043743,-511.34137921,0.00054794,120]
[322561715,1713063043752,-230.127448,0.00054794,7]
[322561716,1713063043761,-500.0,0.00054794,120]
[322561718,1713063043771,-230.127448,0.00054794,7]
[322561719,1713063043780,-508.73,0.00054794,120]
[322561720,1713063043789,-505.49767361,0.00054794,120]
[322561721,1713063043801,-230.127448,0.00054794,7]
[322561722,1713063043810,-230.127448,0.00054794,7]
[322561723,1713063043819,-230.127448,0.00054794,7]
[322561724,1713063043829,-230.127448,0.00054794,7]
[322561725,1713063043838,-502.29006196,0.00054794,120]
[322561726,1713063043847,-230.127448,0.00054794,7]
[322561727,1713063043856,-500.0,0.00054794,120]
[322561728,1713063043866,-500.0,0.00054794,120]
[322561729,1713063043876,-500.0,0.00054794,120]
[322561730,1713063043885,-500.0,0.00054794,120]
[322561731,1713063043895,-539.62472715,0.00054794,120]
[322561732,1713063043905,-530.79,0.00054794,120]
[322561734,1713063043915,-500.0,0.00054794,120]
[322561735,1713063043924,-500.0,0.00054794,120]
[322561737,1713063043934,-500.0,0.00054794,120]
[322561739,1713063043944,-500.0,0.00054794,120]
[322561741,1713063043953,-500.0,0.00054794,120]
[322561743,1713063043963,-429.37621294,0.00054794,120]
[322561745,1713063043973,-500.853556,0.00054794,120]
[322561746,1713063043982,-667.59,0.00054794,120]
[322561747,1713063043992,-500.0,0.00054794,120]
[322561748,1713063044001,-500.0,0.00054794,120]
[322561749,1713063044011,-500.0,0.00054794,120]
[322561750,1713063044021,-519.41711891,0.00054794,120]
[322561751,1713063044030,-623.63,0.00054794,120]
[322561752,1713063044040,-500.0,0.00054794,120]
[322561753,1713063044051,-500.0,0.00054794,120]
[322561754,1713063044060,-500.0,0.00054794,120]
[322561755,1713063044069,-1376.39,0.00054794,120]
[322561756,1713063044078,-501.0208961,0.00054794,120]
[322561757,1713063044087,-156.5417088,0.00054794,120]
[322561758,1713063044097,-500.0,0.00054794,120]
[322561759,1713063044107,-558.41321561,0.00054794,120]
[322561760,1713063044117,-296.97641179,0.00054794,120]
[322561761,1713063044128,-3475.62,0.00054794,120]
[322561762,1713063044140,-151.0,0.00054794,7]
[322561763,1713063044150,-151.0,0.00054794,7]
[322561764,1713063044160,-151.0,0.00054794,7]
[322561765,1713063044171,-500.0,0.00054794,120]
[322561766,1713063044181,-500.0,0.00054794,120]
[322561767,1713063044191,-151.0,0.00054794,7]
[322561768,1713063044200,-151.0,0.00054794,7]
[322561769,1713063044212,-500.0,0.00054794,120]
[322561770,1713063044221,-500.0,0.00054794,120]
[322561771,1713063044232,-500.0,0.00054794,120]
[322561772,1713063044243,-500.0,0.00054794,120]
[322561773,1713063044253,-500.0,0.00054794,120]
[322561774,1713063044263,-610.11,0.00054794,120]
[322561775,1713063044273,-3037.08,0.00054794,120]
[322561776,1713063044283,-500.0,0.00054794,120]
[322561777,1713063044295,-500.0,0.00054794,120]
[322561778,1713063044304,-500.0,0.00054794,120]
[322561779,1713063044313,-502.58831414,0.00054794,120]
[322561780,1713063044322,-500.0,0.00054794,120]
[322561781,1713063044332,-500.0,0.00054794,120]
[322561782,1713063044341,-500.0,0.00054794,120]
[322561783,1713063044351,-500.0,0.00054794,120]
[322561784,1713063044363,-500.0,0.00054794,120]
[322561785,1713063044374,-500.0,0.00054794,120]
[322561786,1713063044384,-500.0,0.00054794,120]
[322561787,1713063044395,-500.0,0.00054794,120]
[322561788,1713063044405,-500.0,0.00054794,120]
[322561789,1713063044415,-383.92602193,0.00054794,120]
[322561790,1713063044424,-500.0,0.00054794,120]
[322561791,1713063044434,-500.0,0.00054794,120]
[322561792,1713063044446,-500.0,0.00054794,120]
[322561793,1713063044456,-746.53,0.00054794,120]
[322561794,1713063044466,-500.0,0.00054794,120]
[322561795,1713063044475,-500.0,0.00054794,120]
[322561796,1713063044486,-500.0,0.00054794,120]
[322561797,1713063044496,-1476.56,0.00054794,120]
[322561798,1713063044507,-500.0,0.00054794,7]
[322561799,1713063044517,-500.0,0.00054794,120]
[322561800,1713063044527,-500.0,0.00054794,120]
[322561801,1713063044537,-954.89,0.00054794,120]
[322561802,1713063044548,-500.0,0.00054794,120]
[322561803,1713063044557,-500.0,0.00054794,120]
[322561804,1713063044567,-500.0,0.00054794,120]
[322561805,1713063044577,-500.0,0.00054794,120]
[322561806,1713063044587,-500.0,0.00054794,120]
[322561807,1713063044598,-500.0,0.00054794,120]
[322561808,1713063044607,-500.0,0.00054794,120]
[322561809,1713063044619,-500.0,0.00054794,120]
[322561810,1713063044629,-500.0,0.00054794,120]
[322561811,1713063044640,-500.0,0.00054794,120]
[322561812,1713063044650,-466.09894697,0.00054794,120]
[322561813,1713063044660,-500.0,0.00054794,120]
[322561814,1713063044670,-500.0,0.00054794,120]
[322561815,1713063044680,-500.0,0.00054794,120]
[322561816,1713063044689,-501.55860925,0.00054794,120]
[322561817,1713063044761,-500.0,0.00054794,120]
[322561818,1713063044774,-500.0,0.00054794,120]
[322561819,1713063044783,-795.782119,0.00054794,7]
[322561820,1713063044792,-500.0,0.00054794,120]
[322561821,1713063044802,-795.782119,0.00054794,7]
[322561822,1713063044811,-795.782119,0.00054794,7]
[322561823,1713063044822,-795.782119,0.00054794,7]